[Event "*** SCC Grand Prix: Titled Tuesday Blitz"]
[Site "Chess.com"]
[Date "2020.08.25"]
[Round "7"]
[White "Shubinkirill2003"]
[Black "SilviusTiberius"]
[Result "1-0"]
[WhiteElo "2645"]
[BlackElo "2472"]
[TimeControl "180+1"]
[EndTime "11:19:54 PDT"]
[Termination "Shubinkirill2003 won by resignation"]

1. e4 {[%clk 0:03:00.9]} 1... c5 {[%clk 0:03:00.2]} 2. Nf3 {[%clk 0:03:00.8]}
2... Nc6 {[%clk 0:03:00.7]} 3. Bb5 {[%clk 0:03:00.3]} 3... g6 {[%clk 0:03:00.6]}
4. Bxc6 {[%clk 0:03:00.3]} 4... dxc6 {[%clk 0:03:01.1]} 5. d3 {[%clk 0:03:00.4]}
5... Bg7 {[%clk 0:03:01.3]} 6. h3 {[%clk 0:03:01.3]} 6... Nf6 {[%clk 0:03:00.8]}
7. a4 {[%clk 0:03:01.8]} 7... a5 {[%clk 0:02:59.8]} 8. Nbd2 {[%clk 0:03:00.8]}
8... Nd7 {[%clk 0:02:53.4]} 9. Nc4 {[%clk 0:02:58.7]} 9... b5 {[%clk 0:02:44.2]}
10. Ncd2 {[%clk 0:02:51.2]} 10... c4 {[%clk 0:02:33]} 11. dxc4 {[%clk
0:02:45.6]} 11... bxc4 {[%clk 0:02:25.6]} 12. c3 {[%clk 0:02:21.4]} 12... Nc5
{[%clk 0:02:19]} 13. O-O {[%clk 0:02:17.1]} 13... Ba6 {[%clk 0:02:16.5]} 14. e5
{[%clk 0:02:16]} 14... Qd5 {[%clk 0:02:12]} 15. Qe2 {[%clk 0:02:06.4]} 15... O-O
{[%clk 0:02:05.1]} 16. Nd4 {[%clk 0:01:50.8]} 16... Nb3 {[%clk 0:01:56.3]} 17.
N4xb3 {[%clk 0:01:30.7]} 17... cxb3 {[%clk 0:01:56]} 18. c4 {[%clk 0:01:31.2]}
18... Qxe5 {[%clk 0:01:54.7]} 19. Qxe5 {[%clk 0:01:30.6]} 19... Bxe5 {[%clk
0:01:55.1]} 20. Re1 {[%clk 0:01:30.7]} 20... Bg7 {[%clk 0:01:42.6]} 21. Nxb3
{[%clk 0:01:25.3]} 21... Bxc4 {[%clk 0:01:40.8]} 22. Nc5 {[%clk 0:01:24.2]}
22... e6 {[%clk 0:01:35.8]} 23. Rb1 {[%clk 0:01:17.2]} 23... Rfd8 {[%clk
0:01:23.2]} 24. b3 {[%clk 0:01:10.1]} 24... Bd3 {[%clk 0:01:14.2]} 25. Nxd3
{[%clk 0:01:09.8]} 25... Rxd3 {[%clk 0:01:14.5]} 26. Bf4 {[%clk 0:01:10.1]}
26... Rad8 {[%clk 0:01:05.9]} 27. Bc7 {[%clk 0:01:02.7]} 27... R8d5 {[%clk
0:01:03.3]} 28. Rec1 {[%clk 0:00:58.6]} 28... Bc3 {[%clk 0:01:01.5]} 29. Rc2
{[%clk 0:00:50.9]} 29... Rd1+ {[%clk 0:00:56.5]} 30. Rxd1 {[%clk 0:00:50.2]}
30... Rxd1+ {[%clk 0:00:56.9]} 31. Kh2 {[%clk 0:00:50.4]} 31... Rd3 {[%clk
0:00:57.4]} 32. Bb6 {[%clk 0:00:41.2]} 32... e5 {[%clk 0:00:46.9]} 33. g3 {[%clk
0:00:40.5]} 33... f5 {[%clk 0:00:46.5]} 34. Kg2 {[%clk 0:00:37.7]} 34... Kf7
{[%clk 0:00:46.8]} 35. h4 {[%clk 0:00:28.6]} 35... Ke6 {[%clk 0:00:42.3]} 36.
Kf1 {[%clk 0:00:28.3]} 36... Kd5 {[%clk 0:00:39.6]} 37. Ke2 {[%clk 0:00:28.3]}
37... e4 {[%clk 0:00:38.3]} 38. Be3 {[%clk 0:00:25.1]} 38... Bb4 {[%clk
0:00:36.3]} 39. Rb2 {[%clk 0:00:25.2]} 39... c5 {[%clk 0:00:36.2]} 40. f3 {[%clk
0:00:24.7]} 40... exf3+ {[%clk 0:00:29.1]} 41. Kxd3 {[%clk 0:00:24.4]} 1-0

[Event "*** SCC Grand Prix: Titled Tuesday Blitz"]
[Site "Chess.com"]
[Date "2020.08.25"]
[Round "7"]
[White "Schachmalanders"]
[Black "AndreyNeves"]
[Result "0-1"]
[WhiteElo "2329"]
[BlackElo "2205"]
[TimeControl "180+1"]
[EndTime "11:19:55 PDT"]
[Termination "AndreyNeves won by resignation"]

1. e4 {[%clk 0:03:00.9]} 1... c5 {[%clk 0:02:59.8]} 2. Nc3 {[%clk 0:02:54.1]}
2... Nc6 {[%clk 0:02:59.6]} 3. g3 {[%clk 0:02:53.5]} 3... g6 {[%clk 0:02:59.4]}
4. Bg2 {[%clk 0:02:53.8]} 4... Bg7 {[%clk 0:02:59.9]} 5. Nge2 {[%clk 0:02:54.7]}
5... d6 {[%clk 0:02:59.5]} 6. d3 {[%clk 0:02:55]} 6... e6 {[%clk 0:02:59.4]} 7.
Be3 {[%clk 0:02:55]} 7... Nd4 {[%clk 0:02:58.4]} 8. Qd2 {[%clk 0:02:54.8]} 8...
Rb8 {[%clk 0:02:57.1]} 9. O-O {[%clk 0:02:48.5]} 9... b5 {[%clk 0:02:57.5]} 10.
f4 {[%clk 0:02:44.9]} 10... b4 {[%clk 0:02:56.3]} 11. Nd1 {[%clk 0:02:45.1]}
11... Ne7 {[%clk 0:02:56]} 12. f5 {[%clk 0:02:37.4]} 12... exf5 {[%clk
0:02:53.5]} 13. Nxd4 {[%clk 0:02:37.6]} 13... cxd4 {[%clk 0:02:51.5]} 14. Bh6
{[%clk 0:02:37.5]} 14... O-O {[%clk 0:02:49.1]} 15. Nf2 {[%clk 0:02:35.7]} 15...
d5 {[%clk 0:02:40.9]} 16. Nh3 {[%clk 0:02:26.2]} 16... dxe4 {[%clk 0:02:34.2]}
17. dxe4 {[%clk 0:02:25.7]} 17... fxe4 {[%clk 0:02:34.1]} 18. Bxg7 {[%clk
0:02:24.9]} 18... Kxg7 {[%clk 0:02:33.1]} 19. Qf4 {[%clk 0:02:22.2]} 19... Bxh3
{[%clk 0:02:21.6]} 20. Bxh3 {[%clk 0:02:20]} 20... f5 {[%clk 0:02:20.8]} 21. g4
{[%clk 0:02:15.4]} 21... Qb6 {[%clk 0:02:05.7]} 22. Kh1 {[%clk 0:02:12.7]} 22...
Qf6 {[%clk 0:01:42.6]} 23. gxf5 {[%clk 0:02:06.4]} 23... gxf5 {[%clk 0:01:41.2]}
24. Rg1+ {[%clk 0:01:48.1]} 24... Kh8 {[%clk 0:01:41]} 25. Rg5 {[%clk
0:01:47.9]} 25... Nd5 {[%clk 0:01:32.8]} 26. Qh4 {[%clk 0:01:44]} 26... Rg8
{[%clk 0:01:19.2]} 27. Rag1 {[%clk 0:01:37.8]} 27... Rxg5 {[%clk 0:01:18.8]} 28.
Rxg5 {[%clk 0:01:38.3]} 28... Rg8 {[%clk 0:01:18.2]} 29. Bxf5 {[%clk 0:01:37.6]}
29... h6 {[%clk 0:01:05.7]} 30. Rxg8+ {[%clk 0:01:36.2]} 30... Kxg8 {[%clk
0:01:04.3]} 31. Qxe4 {[%clk 0:01:35.4]} 31... Ne7 {[%clk 0:00:56.4]} 32. Bh3
{[%clk 0:01:29.7]} 32... Qc6 {[%clk 0:00:48.1]} 33. Bg2 {[%clk 0:01:21.7]} 33...
Qxe4 {[%clk 0:00:46]} 34. Bxe4 {[%clk 0:01:22.6]} 34... Kf7 {[%clk 0:00:45.1]}
35. Kg2 {[%clk 0:01:22]} 35... Kf6 {[%clk 0:00:45.1]} 36. Kf3 {[%clk 0:01:17.4]}
36... Ke5 {[%clk 0:00:45]} 37. h4 {[%clk 0:01:15.3]} 37... a5 {[%clk 0:00:42.8]}
38. Bd3 {[%clk 0:01:04.3]} 38... Nd5 {[%clk 0:00:38.5]} 39. Kg4 {[%clk
0:01:04.2]} 39... Nf6+ {[%clk 0:00:30.2]} 40. Kf3 {[%clk 0:01:02.4]} 40... Nd5
{[%clk 0:00:26]} 41. Bc4 {[%clk 0:01:02.2]} 41... Ne3 {[%clk 0:00:24.8]} 42. Bd3
{[%clk 0:01:01.3]} 42... Nd1 {[%clk 0:00:22.6]} 43. Kg4 {[%clk 0:00:36.4]} 43...
Nxb2 {[%clk 0:00:22.2]} 44. Kh5 {[%clk 0:00:36]} 44... Nxd3 {[%clk 0:00:22.2]}
45. cxd3 {[%clk 0:00:36.4]} 45... a4 {[%clk 0:00:22]} 46. Kxh6 {[%clk
0:00:36.7]} 46... b3 {[%clk 0:00:22.1]} 47. axb3 {[%clk 0:00:36.5]} 47... axb3
{[%clk 0:00:21.2]} 48. Kg6 {[%clk 0:00:36.7]} 48... b2 {[%clk 0:00:21.1]} 49. h5
{[%clk 0:00:37.6]} 49... b1=Q {[%clk 0:00:20.8]} 50. h6 {[%clk 0:00:38.5]} 50...
Qxd3+ {[%clk 0:00:20.7]} 51. Kg7 {[%clk 0:00:38.2]} 51... Qg3+ {[%clk
0:00:20.1]} 0-1

[Event "*** SCC Grand Prix: Titled Tuesday Blitz"]
[Site "Chess.com"]
[Date "2020.08.25"]
[Round "7"]
[White "Moon_stone123"]
[Black "Marty435"]
[Result "0-1"]
[WhiteElo "2521"]
[BlackElo "2626"]
[TimeControl "180+1"]
[EndTime "11:19:56 PDT"]
[Termination "Marty435 won on time"]

1. e4 {[%clk 0:03:00.9]} 1... e6 {[%clk 0:02:57.5]} 2. d4 {[%clk 0:03:00.2]}
2... d5 {[%clk 0:02:57.9]} 3. Nd2 {[%clk 0:03:00.6]} 3... Nc6 {[%clk 0:02:58.2]}
4. Ngf3 {[%clk 0:03:00]} 4... Nf6 {[%clk 0:02:58.2]} 5. e5 {[%clk 0:02:59.7]}
5... Nd7 {[%clk 0:02:58.6]} 6. Bd3 {[%clk 0:03:00]} 6... f6 {[%clk 0:02:52.6]}
7. exf6 {[%clk 0:02:57.2]} 7... Qxf6 {[%clk 0:02:52.3]} 8. O-O {[%clk
0:02:57.8]} 8... Bd6 {[%clk 0:02:52.2]} 9. c3 {[%clk 0:02:56.7]} 9... O-O {[%clk
0:02:52.5]} 10. Re1 {[%clk 0:02:55.4]} 10... e5 {[%clk 0:02:38.4]} 11. dxe5
{[%clk 0:02:54.8]} 11... Ndxe5 {[%clk 0:02:38.2]} 12. Be2 {[%clk 0:02:48.9]}
12... Bg4 {[%clk 0:02:20.3]} 13. c4 {[%clk 0:01:51]} 13... Nxf3+ {[%clk
0:01:59]} 14. Bxf3 {[%clk 0:01:45.1]} 14... Bxf3 {[%clk 0:01:51.4]} 15. Qxf3
{[%clk 0:01:46]} 15... Qxf3 {[%clk 0:01:50.7]} 16. gxf3 {[%clk 0:01:46.9]} 16...
dxc4 {[%clk 0:01:49.5]} 17. Nxc4 {[%clk 0:01:47.8]} 17... Nd4 {[%clk 0:01:43.1]}
18. Rd1 {[%clk 0:01:27.2]} 18... Nxf3+ {[%clk 0:01:33.5]} 19. Kg2 {[%clk
0:01:27]} 19... Bxh2 {[%clk 0:01:13.4]} 20. Be3 {[%clk 0:01:13.4]} 20... c6
{[%clk 0:01:07.9]} 21. Rd7 {[%clk 0:01:13.2]} 21... Ne5 {[%clk 0:00:52.2]} 22.
Nxe5 {[%clk 0:01:09.8]} 22... Bxe5 {[%clk 0:00:53.1]} 23. Rxb7 {[%clk
0:01:09.8]} 23... Rfb8 {[%clk 0:00:50.7]} 24. Rxa7 {[%clk 0:01:03]} 24... Rxa7
{[%clk 0:00:47.4]} 25. Bxa7 {[%clk 0:01:03.9]} 25... Rxb2 {[%clk 0:00:48]} 26.
Rc1 {[%clk 0:00:40.6]} 26... Rxa2 {[%clk 0:00:46.4]} 27. Bb6 {[%clk 0:00:40.5]}
27... Ra6 {[%clk 0:00:34.1]} 28. Rxc6 {[%clk 0:00:40.2]} 28... Kf7 {[%clk
0:00:34]} 29. Rc5 {[%clk 0:00:34]} 29... Bd6 {[%clk 0:00:28.8]} 30. Rc6 {[%clk
0:00:32]} 30... Ke6 {[%clk 0:00:26.2]} 31. Rc2 {[%clk 0:00:02.6]} 31... Rxb6
{[%clk 0:00:21.9]} 32. Re2+ {[%clk 0:00:03.5]} 32... Kf7 {[%clk 0:00:21.7]} 33.
Kf3 {[%clk 0:00:03.4]} 33... Be7 {[%clk 0:00:20.7]} 34. Ra2 {[%clk 0:00:02.6]}
34... Rf6+ {[%clk 0:00:21.6]} 35. Ke4 {[%clk 0:00:02.1]} 35... Bc5 {[%clk
0:00:20.9]} 36. f4 {[%clk 0:00:01.4]} 36... Bd6 {[%clk 0:00:20.3]} 37. f5 {[%clk
0:00:01.3]} 37... Be7 {[%clk 0:00:20.7]} 38. Ra7 {[%clk 0:00:01.4]} 38... Rb6
{[%clk 0:00:20.4]} 39. Kd5 {[%clk 0:00:01.2]} 39... Rb4 {[%clk 0:00:21.1]} 0-1

[Event "*** SCC Grand Prix: Titled Tuesday Blitz"]
[Site "Chess.com"]
[Date "2020.08.25"]
[Round "7"]
[White "ditkin25"]
[Black "monalize"]
[Result "0-1"]
[WhiteElo "2406"]
[BlackElo "2288"]
[TimeControl "180+1"]
[EndTime "11:19:56 PDT"]
[Termination "monalize won by resignation"]

1. e4 {[%clk 0:03:00.9]} 1... c5 {[%clk 0:02:58.2]} 2. Nf3 {[%clk 0:03:00.7]}
2... d6 {[%clk 0:02:57.4]} 3. Bb5+ {[%clk 0:03:00.7]} 3... Nd7 {[%clk
0:02:55.7]} 4. d4 {[%clk 0:03:00.6]} 4... a6 {[%clk 0:02:52.7]} 5. Be2 {[%clk
0:03:00.6]} 5... cxd4 {[%clk 0:02:51.1]} 6. Qxd4 {[%clk 0:03:01.5]} 6... Ngf6
{[%clk 0:02:51]} 7. O-O {[%clk 0:02:59.1]} 7... e5 {[%clk 0:02:46]} 8. Qe3
{[%clk 0:02:58.8]} 8... b5 {[%clk 0:02:41.7]} 9. c4 {[%clk 0:02:58.6]} 9... bxc4
{[%clk 0:02:20.2]} 10. Bxc4 {[%clk 0:02:58.4]} 10... Be7 {[%clk 0:02:19.3]} 11.
Bxf7+ {[%clk 0:02:30.1]} 11... Kxf7 {[%clk 0:02:17.9]} 12. Ng5+ {[%clk
0:02:28.5]} 12... Kg8 {[%clk 0:01:43.5]} 13. Ne6 {[%clk 0:01:57]} 13... Qb6
{[%clk 0:01:36.3]} 14. Qg3 {[%clk 0:01:56.8]} 14... g6 {[%clk 0:01:26.9]} 15.
Nc3 {[%clk 0:01:43.4]} 15... Nc5 {[%clk 0:01:17.7]} 16. Ng5 {[%clk 0:01:34.9]}
16... Qb7 {[%clk 0:01:03.1]} 17. Re1 {[%clk 0:01:27]} 17... Nh5 {[%clk
0:00:55.2]} 18. Qf3 {[%clk 0:01:17.6]} 18... Bxg5 {[%clk 0:00:53]} 19. Bxg5
{[%clk 0:01:18.5]} 19... Qf7 {[%clk 0:00:52]} 20. Qd1 {[%clk 0:01:10.7]} 20...
h6 {[%clk 0:00:45.9]} 21. Qxd6 {[%clk 0:01:01.5]} 21... Nb7 {[%clk 0:00:42.4]}
22. Qc6 {[%clk 0:00:51.3]} 22... hxg5 {[%clk 0:00:41]} 23. Nd5 {[%clk
0:00:46.1]} 23... Be6 {[%clk 0:00:32.7]} 24. Nc7 {[%clk 0:00:38.2]} 24... Rc8
{[%clk 0:00:31.1]} 25. Rac1 {[%clk 0:00:38.8]} 25... Nd8 {[%clk 0:00:27.3]} 26.
Qd6 {[%clk 0:00:31.8]} 26... Kg7 {[%clk 0:00:22.3]} 27. Qxe5+ {[%clk 0:00:27.6]}
27... Nf6 {[%clk 0:00:20.9]} 28. Nxe6+ {[%clk 0:00:13.3]} 28... Nxe6 {[%clk
0:00:19.7]} 29. h3 {[%clk 0:00:11.1]} 29... Rxc1 {[%clk 0:00:15.8]} 30. Rxc1
{[%clk 0:00:11.9]} 30... Qf8 {[%clk 0:00:16.7]} 31. Qxe6 {[%clk 0:00:11.6]}
31... Qf7 {[%clk 0:00:16.3]} 32. Qe5 {[%clk 0:00:11.5]} 32... Re8 {[%clk
0:00:15.2]} 33. Qa5 {[%clk 0:00:11.8]} 33... Nxe4 {[%clk 0:00:13.9]} 34. Rc7
{[%clk 0:00:09.5]} 34... Re7 {[%clk 0:00:13.4]} 35. Qe5+ {[%clk 0:00:09.7]}
35... Rxe5 {[%clk 0:00:11.6]} 36. Rxf7+ {[%clk 0:00:06]} 36... Kxf7 {[%clk
0:00:12.5]} 0-1

[Event "*** SCC Grand Prix: Titled Tuesday Blitz"]
[Site "Chess.com"]
[Date "2020.08.25"]
[Round "7"]
[White "Region_07"]
[Black "PawnEatingZombie"]
[Result "1-0"]
[WhiteElo "2374"]
[BlackElo "2226"]
[TimeControl "180+1"]
[EndTime "11:19:59 PDT"]
[Termination "Region_07 won on time"]

1. e4 {[%clk 0:03:00.9]} 1... c6 {[%clk 0:02:59.6]} 2. d3 {[%clk 0:02:59]} 2...
d5 {[%clk 0:02:58.7]} 3. Nd2 {[%clk 0:02:58.1]} 3... e5 {[%clk 0:02:57.7]} 4. g3
{[%clk 0:02:57.6]} 4... Bd6 {[%clk 0:02:56.7]} 5. Bg2 {[%clk 0:02:57.7]} 5...
Nf6 {[%clk 0:02:57.1]} 6. Ngf3 {[%clk 0:02:54.7]} 6... O-O {[%clk 0:02:56.6]} 7.
O-O {[%clk 0:02:54.6]} 7... Re8 {[%clk 0:02:56.5]} 8. Re1 {[%clk 0:02:51.7]}
8... Nbd7 {[%clk 0:02:55.6]} 9. h3 {[%clk 0:02:29]} 9... Qc7 {[%clk 0:02:54]}
10. d4 {[%clk 0:02:20.4]} 10... Nxe4 {[%clk 0:02:49]} 11. Nxe4 {[%clk
0:02:19.1]} 11... dxe4 {[%clk 0:02:49.3]} 12. dxe5 {[%clk 0:02:07.4]} 12... Nxe5
{[%clk 0:02:38.4]} 13. Nxe5 {[%clk 0:02:00.5]} 13... Bxe5 {[%clk 0:02:27.9]} 14.
Rxe4 {[%clk 0:01:59.4]} 14... Bf5 {[%clk 0:02:25.1]} 15. Re2 {[%clk 0:01:58.4]}
15... Rad8 {[%clk 0:01:38.5]} 16. Qe1 {[%clk 0:01:58.1]} 16... Bd7 {[%clk
0:01:26.3]} 17. Bg5 {[%clk 0:01:45.5]} 17... f6 {[%clk 0:01:17]} 18. Be3 {[%clk
0:01:36.1]} 18... Bxb2 {[%clk 0:01:11]} 19. Rb1 {[%clk 0:01:35.6]} 19... Ba3
{[%clk 0:00:58.6]} 20. Bxa7 {[%clk 0:01:29.1]} 20... b5 {[%clk 0:00:46.8]} 21.
Rxe8+ {[%clk 0:01:18.5]} 21... Rxe8 {[%clk 0:00:46.3]} 22. Be3 {[%clk
0:01:15.2]} 22... Bc5 {[%clk 0:00:40.6]} 23. Rb3 {[%clk 0:01:11.5]} 23... Qb6
{[%clk 0:00:14.4]} 24. Qd2 {[%clk 0:00:45.6]} 24... Bxe3 {[%clk 0:00:14.1]} 25.
fxe3 {[%clk 0:00:46.2]} 25... Bf5 {[%clk 0:00:12.6]} 26. Rc3 {[%clk 0:00:44.3]}
26... c5 {[%clk 0:00:10]} 27. Qd5+ {[%clk 0:00:40.7]} 27... Be6 {[%clk
0:00:10.5]} 28. Qxc5 {[%clk 0:00:40.3]} 28... Qxc5 {[%clk 0:00:10.5]} 29. Rxc5
{[%clk 0:00:41.2]} 29... Bxa2 {[%clk 0:00:10.2]} 30. Rxb5 {[%clk 0:00:33.5]}
30... Rxe3 {[%clk 0:00:09.4]} 31. Kf2 {[%clk 0:00:27.7]} 31... Rc3 {[%clk
0:00:08.2]} 32. Rb2 {[%clk 0:00:25.6]} 32... Be6 {[%clk 0:00:06.6]} 33. g4
{[%clk 0:00:22]} 33... f5 {[%clk 0:00:05.3]} 34. g5 {[%clk 0:00:18]} 34... f4
{[%clk 0:00:04.7]} 35. Be4 {[%clk 0:00:14.4]} 35... Bxh3 {[%clk 0:00:01.7]} 36.
Ke2 {[%clk 0:00:13.1]} 36... g6 {[%clk 0:00:01.3]} 37. Kd2 {[%clk 0:00:13.1]}
37... Re3 {[%clk 0:00:01.6]} 38. Bd5+ {[%clk 0:00:12.4]} 38... Kg7 {[%clk
0:00:01.2]} 39. c4 {[%clk 0:00:12.8]} 1-0

[Event "*** SCC Grand Prix: Titled Tuesday Blitz"]
[Site "Chess.com"]
[Date "2020.08.25"]
[Round "7"]
[White "lifeissofun"]
[Black "MFBerna"]
[Result "0-1"]
[WhiteElo "2267"]
[BlackElo "2450"]
[TimeControl "180+1"]
[EndTime "11:20:00 PDT"]
[Termination "MFBerna won on time"]

1. e4 {[%clk 0:03:00.9]} 1... c5 {[%clk 0:02:58.5]} 2. Nf3 {[%clk 0:03:01.4]}
2... d6 {[%clk 0:02:52]} 3. d4 {[%clk 0:03:01.6]} 3... cxd4 {[%clk 0:02:52.9]}
4. Nxd4 {[%clk 0:03:01.3]} 4... Nf6 {[%clk 0:02:53]} 5. Nc3 {[%clk 0:03:01.5]}
5... a6 {[%clk 0:02:49.9]} 6. h3 {[%clk 0:03:01.9]} 6... e5 {[%clk 0:02:48.8]}
7. Nb3 {[%clk 0:03:01.6]} 7... Be6 {[%clk 0:02:48.7]} 8. f4 {[%clk 0:03:01.6]}
8... Be7 {[%clk 0:02:39.1]} 9. Be3 {[%clk 0:02:58.7]} 9... exf4 {[%clk
0:02:33.5]} 10. Bxf4 {[%clk 0:02:56.9]} 10... Nc6 {[%clk 0:02:33.5]} 11. Qe2
{[%clk 0:02:54.6]} 11... O-O {[%clk 0:02:30.7]} 12. O-O-O {[%clk 0:02:54.4]}
12... Qc7 {[%clk 0:02:24.4]} 13. g4 {[%clk 0:02:52.7]} 13... Ne5 {[%clk
0:02:18.4]} 14. g5 {[%clk 0:02:45.2]} 14... Nfd7 {[%clk 0:02:18.1]} 15. Nd4
{[%clk 0:02:30.5]} 15... b5 {[%clk 0:02:10.8]} 16. Nf5 {[%clk 0:02:25.9]} 16...
Rfe8 {[%clk 0:02:02.1]} 17. h4 {[%clk 0:02:11.4]} 17... Rac8 {[%clk 0:01:43.9]}
18. h5 {[%clk 0:02:04.9]} 18... b4 {[%clk 0:01:40.1]} 19. Nd5 {[%clk 0:01:55.2]}
19... Bxd5 {[%clk 0:01:40.6]} 20. Rxd5 {[%clk 0:01:52.2]} 20... Bf8 {[%clk
0:01:33.6]} 21. Qd1 {[%clk 0:01:43.9]} 21... Nb6 {[%clk 0:01:25.4]} 22. Rd4
{[%clk 0:01:29.4]} 22... a5 {[%clk 0:01:03.8]} 23. Nxd6 {[%clk 0:01:25.3]} 23...
Bxd6 {[%clk 0:01:03]} 24. Rxd6 {[%clk 0:01:25.6]} 24... Nec4 {[%clk 0:00:38.8]}
25. Rf6 {[%clk 0:00:52.7]} 25... Qc5 {[%clk 0:00:28.3]} 26. Rf5 {[%clk
0:00:51.4]} 26... Qc6 {[%clk 0:00:25]} 27. Bg2 {[%clk 0:00:47.1]} 27... Nxb2
{[%clk 0:00:23.8]} 28. g6 {[%clk 0:00:30]} 28... Nxd1 {[%clk 0:00:21.9]} 29.
gxf7+ {[%clk 0:00:25.4]} 29... Kh8 {[%clk 0:00:22.4]} 30. fxe8=Q+ {[%clk
0:00:25.2]} 30... Rxe8 {[%clk 0:00:23.3]} 31. Rxd1 {[%clk 0:00:21.9]} 31... h6
{[%clk 0:00:19.1]} 32. Rd6 {[%clk 0:00:20.1]} 32... Qb7 {[%clk 0:00:10]} 33. Rg6
{[%clk 0:00:17.8]} 33... Nc4 {[%clk 0:00:09.5]} 34. e5 {[%clk 0:00:12.3]} 34...
Qd7 {[%clk 0:00:08.1]} 35. e6 {[%clk 0:00:09]} 35... Qd4 {[%clk 0:00:07.2]} 0-1

[Event "*** SCC Grand Prix: Titled Tuesday Blitz"]
[Site "Chess.com"]
[Date "2020.08.25"]
[Round "7"]
[White "Quiet_Desperation"]
[Black "DarZay"]
[Result "1-0"]
[WhiteElo "2280"]
[BlackElo "2124"]
[TimeControl "180+1"]
[EndTime "11:20:01 PDT"]
[Termination "Quiet_Desperation won by checkmate"]

1. e4 {[%clk 0:02:59.5]} 1... e5 {[%clk 0:02:59.6]} 2. Nf3 {[%clk 0:02:57.8]}
2... Nc6 {[%clk 0:02:58.9]} 3. Bc4 {[%clk 0:02:53.9]} 3... Bc5 {[%clk
0:02:58.2]} 4. b4 {[%clk 0:02:52.6]} 4... Bxb4 {[%clk 0:02:56.9]} 5. c3 {[%clk
0:02:52.8]} 5... Ba5 {[%clk 0:02:54.5]} 6. O-O {[%clk 0:02:50.3]} 6... Nf6
{[%clk 0:02:50.2]} 7. d4 {[%clk 0:02:49.9]} 7... Nxe4 {[%clk 0:02:41.1]} 8. dxe5
{[%clk 0:02:42.3]} 8... O-O {[%clk 0:02:33.9]} 9. Qd5 {[%clk 0:02:29.6]} 9...
Nxc3 {[%clk 0:02:24.6]} 10. Nxc3 {[%clk 0:02:28.5]} 10... Bxc3 {[%clk
0:02:24.8]} 11. Bd3 {[%clk 0:02:04.9]} 11... Bxa1 {[%clk 0:02:14.6]} 12. Bxh7+
{[%clk 0:01:59.5]} 12... Kh8 {[%clk 0:01:55.9]} 13. Bb1 {[%clk 0:01:46.1]} 13...
Ne7 {[%clk 0:01:47.1]} 14. Qe4 {[%clk 0:01:37]} 14... Ng6 {[%clk 0:01:46.5]} 15.
Qg4 {[%clk 0:01:33.8]} 15... d5 {[%clk 0:01:33.2]} 16. Qh5+ {[%clk 0:01:30.7]}
16... Kg8 {[%clk 0:01:31.9]} 17. Ng5 {[%clk 0:01:27.7]} 17... Re8 {[%clk
0:01:29.1]} 18. Bxg6 {[%clk 0:01:13.7]} 18... Bd4 {[%clk 0:00:37.9]} 19. Bxf7+
{[%clk 0:01:01.9]} 19... Kf8 {[%clk 0:00:36.2]} 20. Nh7+ {[%clk 0:00:47.3]}
20... Ke7 {[%clk 0:00:35.8]} 21. Bg5+ {[%clk 0:00:46.4]} 21... Kd7 {[%clk
0:00:35.9]} 22. e6+ {[%clk 0:00:37]} 22... Kd6 {[%clk 0:00:31]} 23. Bxd8 {[%clk
0:00:32.7]} 23... Rxd8 {[%clk 0:00:31.1]} 24. Qh4 {[%clk 0:00:29.8]} 24... Rh8
{[%clk 0:00:28.6]} 25. Qxd4 {[%clk 0:00:29.3]} 25... Rxh7 {[%clk 0:00:28.2]} 26.
e7 {[%clk 0:00:25.7]} 26... Bd7 {[%clk 0:00:25.7]} 27. e8=Q {[%clk 0:00:23.4]}
27... Bxe8 {[%clk 0:00:25.1]} 28. Bxe8 {[%clk 0:00:23.8]} 28... Rxe8 {[%clk
0:00:24.2]} 29. Qxa7 {[%clk 0:00:23.7]} 29... Rhh8 {[%clk 0:00:20]} 30. Qxb7
{[%clk 0:00:23.2]} 30... Rb8 {[%clk 0:00:19.2]} 31. Qa6+ {[%clk 0:00:22.5]}
31... Rb6 {[%clk 0:00:18.7]} 32. Qd3 {[%clk 0:00:22.3]} 32... Rhb8 {[%clk
0:00:18.4]} 33. Qg3+ {[%clk 0:00:22.2]} 33... Kd7 {[%clk 0:00:18.4]} 34. Qxg7+
{[%clk 0:00:21.7]} 34... Kd6 {[%clk 0:00:18]} 35. h4 {[%clk 0:00:21.4]} 35...
Rb1 {[%clk 0:00:17.7]} 36. Rxb1 {[%clk 0:00:20.4]} 36... Rxb1+ {[%clk
0:00:17.7]} 37. Kh2 {[%clk 0:00:21.3]} 37... Rb6 {[%clk 0:00:17.2]} 38. h5
{[%clk 0:00:20.9]} 38... Kc5 {[%clk 0:00:17.8]} 39. h6 {[%clk 0:00:20.5]} 39...
Kb5 {[%clk 0:00:18.5]} 40. h7 {[%clk 0:00:20.7]} 40... c5 {[%clk 0:00:18.7]} 41.
h8=Q {[%clk 0:00:20.6]} 41... c4 {[%clk 0:00:19.1]} 42. Qb2+ {[%clk 0:00:19.8]}
42... Kc5 {[%clk 0:00:19.3]} 43. Qf8+ {[%clk 0:00:18.9]} 43... Kc6 {[%clk
0:00:18.4]} 44. Qff6+ {[%clk 0:00:18.3]} 44... Kc7 {[%clk 0:00:18.6]} 45. Qfxb6+
{[%clk 0:00:18.2]} 45... Kd7 {[%clk 0:00:18.6]} 46. Qg7+ {[%clk 0:00:18.3]}
46... Kc8 {[%clk 0:00:18.8]} 47. Qbc7# {[%clk 0:00:17.1]} 1-0